Cogmind - Beta 13 *** ADVENTURER MODE // 2024.03.01 @ 18:31:41 Player: Occam Result: Self-destructed Performance ------------- Evolutions (2) 1000 Regions Visited (4) 800 Robots Destroyed (120) 600 Value Destroyed (3183) 3183 Prototype IDs (6) 120 Alien Tech Used (0) 0 Bonus (356) 356 TOTAL SCORE: 6059 Bonus ------- High Alert Combat Kills 400 Friendly Fire -44 Cogmind --------- Core Integrity 353/550 Matter 300/300 Energy 275/275 System Corruption 1% Temperature Cool (0) Movement Rolling (190) Ox6 Location -8/Materials Parts ------- > --- POWER (1) -------- Deuterium Engine > --- PROPULSION (3) --- Light Treads Spiked Treads Compact Wheel > --- UTILITY (5) ------ Improved Cooling System Huge Storage Unit Structural Scanner Advanced Targeting Computer Improved Light Armor Plating > --- WEAPON (2) ------- Heavy Particle Gun Heavy Particle Gun > --- INVENTORY (25) --- Nuclear Core Light Treads Light Treads Improved Cooling System Improved Cooling System Huge Storage Unit Large Matter Pod (150) Structural Scanner Improved Signal Interpreter Improved Signal Interpreter Seismic Detector Advanced Targeting Computer Hardlight Generator Hacking Suite System Shield Trap Extractor (0/4) Advanced Beam Rifle Enhanced Autogun Enhanced Autogun Enhanced Autogun Missile Launcher Missile Launcher Improved Datajack Chainsword Peak State ------------ > --- POWER ------------ Deuterium Engine > --- PROPULSION ------- Light Treads Spiked Treads Compact Wheel > --- UTILITY ---------- Improved Cooling System Huge Storage Unit Structural Scanner Advanced Targeting Computer Improved Light Armor Plating > --- WEAPON ----------- Heavy Particle Gun Heavy Particle Gun > --- INVENTORY -------- Improved Ion Engine Nuclear Core Light Treads Light Treads Improved Cooling System Improved Cooling System Huge Storage Unit Large Matter Pod Structural Scanner Structural Scanner Improved Signal Interpreter Improved Signal Interpreter Seismic Detector Advanced Targeting Computer Hacking Suite Trap Extractor Spread Laser Spread Laser Advanced Beam Rifle Enhanced Autogun Enhanced Autogun Enhanced Autogun Missile Launcher Missile Launcher Chainsword [Rating: 33] Favorites ----------- Power Deuterium Engine Engine Deuterium Engine Propulsion Light Treads Treads Light Treads Leg Aluminum Leg Wheel Compact Wheel Flight Unit Improved Flight Unit Utility Huge Storage Unit Device Improved Heat Sink Storage Huge Storage Unit Processor Advanced Targeting Computer Protection Light Armor Plating Weapon Assault Rifle Energy Gun Spread Laser Energy Cannon Subdweller Beam Cannon Ballistic Gun Assault Rifle Launcher Missile Launcher Build | -11 -10 -10 -10 -8 ------- Run | Yrd Mat Min Sub Mat Slots Evolved 4 | . . . . 4 Power . | . . . . . Propulsion 1 | . . . . 1 Utility 3 | . . . . 3 Weapon . | . . . . . Parts Attached 75 | 1 8 8 15 43 Power 7 | . 1 1 2 3 Engine 7 | . 1 1 2 3 Core . | . . . . . Reactor . | . . . . . Propulsion 22 | . 3 1 5 13 Treads 11 | . 1 1 2 7 Leg 1 | . . . . 1 Wheel 9 | . 2 . 3 4 Hover . | . . . . . Flight 1 | . . . . 1 Utility 22 | 1 3 3 3 12 Device 12 | 1 1 2 3 5 Storage 2 | . 2 . . . Processor 3 | . . 1 . 2 Hackware . | . . . . . Protection 5 | . . . . 5 Artifact . | . . . . . Weapon 24 | . 1 3 5 15 Energy Gun 14 | . . 1 . 13 Energy Cannon 2 | . . . 2 . Ballistic Gun 7 | . 1 2 3 1 Ballistic Cannon . | . . . . . Launcher 1 | . . . . 1 Special Weapon . | . . . . . Impact Weapon . | . . . . . Slashing Weapon . | . . . . . Piercing Weapon . | . . . . . Special Melee Weapon . | . . . . . Unidentified Prototypes 4 | . . . . 4 Parts Lost 9 | . . 2 1 6 Power . | . . . . . Propulsion 3 | . . . . 3 Utility 3 | . . . . 3 Weapon 3 | . . 2 1 . Highest Loss Streak 2 | . . 2 1 2 To Critical Strikes . | . . . . . Average Slot Usage (%) 98 | . 100 100 100 95 Engine 12 | . 14 14 14 9 Treads 15 | . 13 14 14 17 Wheel 11 | . 13 14 14 8 Device 15 | . 14 13 13 18 Storage 12 | . 14 14 14 9 Processor 2 | . . . . 4 Protection 3 | . . . . 9 Energy Gun 8 | . . 9 1 17 Energy Cannon 2 | . . . 12 . Ballistic Gun 12 | . 28 18 14 . Naked Turns . | . . . . . Heaviest Build 116 | 12 90 91 100 116 Greatest Support 20 | 20 20 20 20 20 Greatest Overweight (x) 6 | . 5 5 6 6 Average Overweight (x) 4 | . 4 4 4 5 Largest Inventory Capacity 25 | 8 25 25 25 25 Average Capacity 24 | 8 23 25 25 25 Most Carried 25 | 7 25 25 25 25 Average Carried 22 | 6 19 24 24 24 Final Capacity 25 | 8 25 25 25 25 Final Carried 25 | 7 25 24 25 24 Class Distribution -------------------- 74% | Mutant 18% | Subdweller-Mutant 6% | Scavenger-Mutant Dominant Class ---------------- Mutant | -10/Materials Mutant | -10/Mines Subdweller-Mutant | -10/Subcaves Mutant | -8/Materials Resources | -11 -10 -10 -10 -8 ----------- Run | Yrd Mat Min Sub Mat Matter Collected 1855 | 258 565 187 271 574 Remotely . | . . . . . Salvage Created 3896 | 199 671 349 557 2120 Parts 210 | 11 42 24 36 97 Haulers Intercepted 6 | . . . . 6 Recyclers Shooed 10 | 1 5 3 . 1 Parts Field Recycled . | . . . . . Retrieved Matter . | . . . . . Parts Self-Destructed 5 | . . . 5 . Prevented . | . . . . . Kills | -11 -10 -10 -10 -8 ------- Run | Yrd Mat Min Sub Mat Combat Hostiles Destroyed 82 | . 13 7 13 49 Guns 71 | . 13 7 8 43 Cannons 5 | . . . 5 . AOE 4 | . . . . 4 Classes Destroyed 15 | 2 3 3 2 5 Worker 1 | . . 1 . . Builder 3 | . . 1 . 2 Tunneler 6 | 5 . 1 . . Hauler 6 | . . . . 6 Recycler 9 | 1 4 1 . 3 Operator 3 | . . . . 3 Turret 2 | . . . 2 . Watcher 8 | . 3 . . 5 Swarmer 25 | . 6 3 2 14 Grunt 27 | . 7 2 . 18 Brawler 1 | . . . . 1 Duelist 4 | . . . . 4 Sentry 13 | . . 2 1 10 Hunter 2 | . . . . 2 Subdweller 10 | . . . 10 . Best Kill Streak 7 | 4 4 5 6 7 Combat Bots Only 7 | . 3 5 6 7 Max Kills in Single Turn 2 | 1 1 1 1 2 Gunslinging 1 | . . . . 1 Exploded 2 | . . . . 2 Melee . | . . . . . Uniques/NPCs Destroyed . | . . . . . Combat | -11 -10 -10 -10 -8 -------- Run | Yrd Mat Min Sub Mat Hostile Shots Fired 379 | . 50 37 90 202 Missed 123 | . 7 11 33 72 Damage Taken 2691 | . 345 281 512 1553 Core 377 | . 40 61 79 197 Absorbed by Shields . | . . . . . Ignored by Resistances 800 | . 113 83 156 448 Regen/Repaired (Parts) 359 | . 16 . . 343 Core Remaining (%) 64 | 100 . . 28 . Volleys Fired 291 | 12 49 29 51 150 Largest 2 | 2 2 2 2 2 Hottest 130 | 40 40 70 110 130 Shots Fired 567 | 24 98 57 91 297 Gun 524 | 24 98 57 54 291 Cannon 39 | . . . 37 2 Launcher 4 | . . . . 4 Special . | . . . . . Kinetic 215 | 24 98 38 43 12 Thermal 348 | . . 19 48 281 Explosive 4 | . . . . 4 Electromagnetic . | . . . . . Robot Hit Streak 31 | 12 21 29 31 31 Robot Miss Streak 4 | 1 3 1 3 4 Penetration Max . | . . . . . Secondary Targets 9 | . 1 1 1 6 Max Gunslinging Chain 1 | . 1 1 1 1 Shots Hit Robots 460 | 20 71 48 73 248 Core Hits 370 | 9 33 21 24 283 Critical Kills . | . . . . . Critical Parts Destroyed 1 | . . 1 . . Critical Strikes 12 | . . 1 5 6 Burn 8 | . . . 2 6 Destroy 4 | . . 1 3 . Melee Attacks . | . . . . . Impact . | . . . . . Slashing . | . . . . . Piercing . | . . . . . Sneak Attacks . | . . . . . Combat Hostiles . | . . . . . Follow-up Attacks . | . . . . . Damage Inflicted 8120 | 213 894 531 1476 5006 Guns 6882 | 213 894 531 777 4467 Cannons 725 | . . . 699 26 Explosions 513 | . . . . 513 Melee . | . . . . . Ramming . | . . . . . Kinetic 2161 | 213 894 326 639 89 Thermal 5446 | . . 205 837 4404 Explosive 513 | . . . . 513 Electromagnetic . | . . . . . Impact . | . . . . . Slashing . | . . . . . Piercing . | . . . . . Highest Corruption 1 | . 1 1 1 1 Average Corruption 1 | . 1 1 1 1 Corruption Purged . | . . . . . Corruption Blocked . | . . . . . Effects 30 | . 3 10 6 11 Message Errors 5 | . . 4 . 1 Matter Fused 11 | . 1 1 2 7 Heat Flow Errors 2 | . . 1 . 1 Energy Discharges 6 | . 1 2 2 1 Data Loss (minor) 2 | . 1 1 . . Data Loss (major) 1 | . . . 1 . Misfires 2 | . . . 1 1 Weapon Failures 1 | . . 1 . . Overload Shots . | . . . . . Overflow Damage 56 | . . . . 56 Projectiles . | . . . . . Explosions 56 | . . . . 56 Melee . | . . . . . Knockbacks . | . . . . . Impact . | . . . . . Kinetic . | . . . . . Secondary . | . . . . . Self-Inflicted Damage . | . . . . . Shots . | . . . . . Rammed . | . . . . . Targets Rammed . | . . . . . Kicked . | . . . . . Crushed . | . . . . . Highest Temperature 297 | . 9 263 6 297 Average Temperature 61 | . 3 96 6 56 Received Heat Transfer 1254 | . 192 174 141 747 Siege Activations . | . . . . . Robots Corrupted . | . . . . . Combat Hostiles . | . . . . . Parts Fried . | . . . . . Impact Corruptions . | . . . . . Robots Melted 2 | . . . . 2 Combat Hostiles 2 | . . . . 2 Parts Melted 20 | . . . 2 18 Heat Transferred 9129 | . . 592 1480 7057 Parts Sabotaged . | . . . . . Parts Stolen . | . . . . . Parts Stripped . | . . . . . Power Chain Reactions . | . . . . . Alert | -11 -10 -10 -10 -8 ------- Run | Yrd Mat Min Sub Mat Peak Influence 713 | 30 172 160 . 713 Initial 433 | . 16 9 . 433 Average 267 | 17 58 28 . 520 Maximum Alert Level 3 | . . . . 3 Low Security (%) 53 | 100 100 100 . . Level 1 2 | . . . . 5 Level 2 42 | . . . . 91 Level 3 1 | . . . . 3 Level 4 . | . . . . . Level 5 . | . . . . . High Security . | . . . . . Max Security . | . . . . . Squads Dispatched 10 | . 3 . . 7 Investigation 5 | . 3 . . 2 Extermination . | . . . . . Reinforcement 4 | . . . . 4 Assault 1 | . . . . 1 Garrison . | . . . . . Intercept . | . . . . . Searches Triggered 1 | . . . . 1 Construction Impeded 1 | . . . . 1 Haulers Reinforced . | . . . . . Active Scanning Responses . | . . . . . Cargo Convoy Interrupts . | . . . . . Stealth | -11 -10 -10 -10 -8 --------- Run | Yrd Mat Min Sub Mat Distress Signals 1 | . . . . 1 Communications Jammed . | . . . . . Distress Signals . | . . . . . Times Spotted 172 | . 18 7 72 75 Peak Tracking Total 7 | . 3 5 7 5 Tactical Retreats 9 | . . . 4 5 Traps | -11 -10 -10 -10 -8 ------- Run | Yrd Mat Min Sub Mat Traps Triggered 6 | . 3 . . 3 Indirectly . | . . . . . Trap Hack Attempts . | . . . . . Triggered . | . . . . . Disarmed . | . . . . . Reprogrammed . | . . . . . Reused . | . . . . . Traps Extracted . | . . . . . Installed 1 | . . . 1 . Triggered . | . . . . . Machines | -11 -10 -10 -10 -8 ---------- Run | Yrd Mat Min Sub Mat Machines Disabled 4 | . . . 2 2 Max in Single Turn 1 | . . . 1 1 Garrison Access 1 | . . . . 1 Machines Repaired . | . . . . . Machines Dismantled . | . . . . . Machines Sabotaged . | . . . . . Overloaded Fab Kills . | . . . . . Hacking | -11 -10 -10 -10 -8 --------- Run | Yrd Mat Min Sub Mat Machines Accessed 24 | . 11 . . 13 Terminals 16 | . 8 . . 8 Fabricators . | . . . . . Repair Stations 2 | . 1 . . 1 Recycling Units 4 | . 2 . . 2 Scanalyzers 1 | . . . . 1 Garrison Access 1 | . . . . 1 Total Hacks 71 | . 30 . . 41 Successful 45 | . 20 . . 25 Failed 25 | . 9 . . 16 Catastrophic 1 | . 1 . . . Database Lockouts 1 | . 1 . . . Manual 47 | . 21 . . 26 Terminals 50 | . 24 . . 26 Fabricators . | . . . . . Repair Stations 8 | . 2 . . 6 Recycling Units 8 | . 4 . . 4 Scanalyzers 3 | . . . . 3 Garrison Access 2 | . . . . 2 Terminal Hacks 18 | . 11 . . 7 Robot Analysis 4 | . 4 . . . Prototype ID Bank 1 | . 1 . . . Branch Access Points 1 | . . . . 1 Terminal Index 2 | . 1 . . 1 Alert Level 4 | . 1 . . 3 Locate Traps 3 | . 3 . . . Recall Investigation 1 | . . . . 1 Hauler Manifests 2 | . 1 . . 1 Fabricator Hacks . | . . . . . Repair Station Hacks 8 | . 2 . . 6 Scan Component 4 | . 1 . . 3 Repair 4 | . 1 . . 3 Recycling Unit Hacks 3 | . 1 . . 2 Report Inventory 3 | . 1 . . 2 Scanalyzer 3 | . . . . 3 Insert Component 2 | . . . . 2 Analyze 1 | . . . . 1 Garrison Access Hacks 1 | . . . . 1 Seal Access 1 | . . . . 1 Unauthorized Hacks 12 | . 6 . . 6 Terminals 7 | . 3 . . 4 Botnet 7 | . 3 . . 4 Fabricators . | . . . . . Repair Stations . | . . . . . Recycling Units 5 | . 3 . . 2 Reject 1 | . . . . 1 Recyclers 2 | . 1 . . 1 Tunnel 2 | . 2 . . . Scanalyzers . | . . . . . Garrison Access . | . . . . . Data Cores Recovered 1 | . . . . 1 Used . | . . . . . Hacking Detections 18 | . 8 . . 10 Full Trace Events . | . . . . . Feedback Events . | . . . . . Feedback Blocked . | . . . . . Robot Schematics Acquired . | . . . . . Robots Built . | . . . . . Authchips . | . . . . . Time . | . . . . . Total Robot Build Rating . | . . . . . Part Schematics Acquired 1 | . . . . 1 Parts Built . | . . . . . Authchips . | . . . . . Time . | . . . . . Total Part Build Rating . | . . . . . Parts Repaired 4 | . 1 . . 3 Time 134 | . 38 . . 96 Parts Recycled . | . . . . . Recycled Matter . | . . . . . Retrieved Matter . | . . . . . Retrieved Components . | . . . . . Parts Scanalyzed 1 | . . . . 1 Part Schematics Acquired 1 | . . . . 1 Parts Damaged 1 | . . . . 1 Bothacking | -11 -10 -10 -10 -8 ------------ Run | Yrd Mat Min Sub Mat Used RIF Installer . | . . . . . Robots Hacked . | . . . . . Non-combat . | . . . . . Combat . | . . . . . Robot Hacks Applied . | . . . . . Relay Couplers Released . | . . . . . Fabnet Peak Effective % . | . . . . . Robots Rewired . | . . . . . Allies Hacked . | . . . . . Hacks Repelled . | . . . . . Allies | -11 -10 -10 -10 -8 -------- Run | Yrd Mat Min Sub Mat Total Allies . | . . . . . Largest Group . | . . . . . Highest-Rated Group . | . . . . . Highest-Rated Ally . | . . . . . Total Orders . | . . . . . Ally Attacks . | . . . . . Total Damage . | . . . . . Kills . | . . . . . Allies Corrupted . | . . . . . Allies Melted . | . . . . . Intel | -11 -10 -10 -10 -8 ------- Run | Yrd Mat Min Sub Mat Robot Analysis Total 4 | . 4 . . . Derelict Logs Recovered 3 | . . 1 2 . Drone Launches . | . . . . . Drone Recoveries . | . . . . . Exploration | -11 -10 -10 -10 -8 ------------- Run | Yrd Mat Min Sub Mat Turns Passed 7547 | 111 1739 1512 1228 2957 Spaces Moved 3696 | 39 894 782 681 1300 Core . | . . . . . Treads 7 | . . 7 . . Legs 65 | 39 26 . . . Wheels 3624 | . 868 775 681 1300 Hover . | . . . . . Flight . | . . . . . Fastest Speed 95 | 120 95 175 150 150 Average Speed 169 | 120 168 177 152 175 Slowest Speed 480 | 120 175 480 190 190 Overloaded Moves . | . . . . . Propulsion Burnouts . | . . . . . Robots Hopped . | . . . . . Cave-ins Triggered . | . . . . . Exploration Rate (%) 67 | 4 98 95 42 97 Regions Visited 4 Branch Regions 2 Pre-discovered Areas 4 | . 2 . 2 . Known Exits Taken 1 | . . 1 . . Unknown Exits Taken 3 | 1 1 . 1 . Scrap Searched 10 | . . 2 8 . Spaces Dug 11 | . . . . 11 Terrain Destroyed 35 | . . . 2 33 Melee . | . . . . . Projectile 3 | . . . 2 1 AOE 32 | . . . . 32 Terrain Rammed . | . . . . . Walls Destroyed . | . . . . . Machines Disabled . | . . . . . Actions | -11 -10 -10 -10 -8 --------- Run | Yrd Mat Min Sub Mat Total 4452 | 81 1036 853 792 1690 Wait 238 | 29 57 22 2 128 Move 3692 | 38 893 781 680 1300 Hop . | . . . . . Pick Up 72 | 1 22 6 16 27 Fast Attach 24 | 1 1 . 7 15 Attach 21 | . 2 3 3 13 Detach 13 | . 1 . 3 9 Swap 30 | . 5 5 5 15 Drop 70 | . 6 7 24 33 Fire 291 | 12 49 29 51 150 Melee . | . . . . . Ram . | . . . . . Kick . | . . . . . Crush . | . . . . . Escape Stasis . | . . . . . Rewire . | . . . . . Trap 1 | . . . 1 . Miscellaneous . | . . . . . Route ------- -11/Scrapyard -10/Materials (discovered 4 exits: *Mat x3 / [*Min]) -10/Mines (discovered 3 exits: *Mat x2 / *Sub) -10/Subcaves (discovered 2 exits: *Mat / [*Rec]) -8/Materials (discovered 5 exits: *Fac x3 / *Sto x2) History --------- Turn | Location | Event 18 | -11/Scrapyard | Discovered new exit (range 3) 112 | -11/Scrapyard | Entered Materials 300 | -10/Materials | Build established: Mutant 508 | -10/Materials | Repaired Imp. Heat Sink 638 | -10/Materials | Discovered new exit (range 9) 688 | -10/Materials | Discovered new exit (range 16) 1309 | -10/Materials | Discovered new exit (range 15) 1554 | -10/Materials | Central database locked down 1563 | -10/Materials | Discovered new exit (range 3) 1851 | -10/Materials | Entered Mines 1862 | -10/Mines | Discovered new exit (range 5) 1936 | -10/Mines | Learned location of 1 exit from Materials 2624 | -10/Mines | Discovered new exit (range 5) 3101 | -10/Mines | Received a Rocket Launcher from a helpful Derelict 3323 | -10/Mines | Discovered new exit (range 5) 3332 | -10/Mines | Identified exit to Subcaves 3345 | -10/Mines | Identified exit to Materials 3363 | -10/Mines | Entered Subcaves 3459 | -10/Subcaves | Ambushed by swarm of Subdwellers 3460 | -10/Subcaves | Ambushed by Subdwellers from Twisted Machinery 3460 | -10/Subcaves | Ambushed by Subdwellers from Twisted Machinery 3501 | -10/Subcaves | Lost 3 allies 3608 | -10/Subcaves | A swath of the cavern ceiling suddenly collapsed 3609 | -10/Subcaves | Core integrity fell below 50% 3793 | -10/Subcaves | Build established: Subdweller-Mutant 3925 | -10/Subcaves | Shifting Twisted Machinery released Piercing Trap 3929 | -10/Subcaves | Shifting Twisted Machinery released Sub. Laser 4016 | -10/Subcaves | Learned location of Zion (-7) 4132 | -10/Subcaves | Discovered new exit (range 11) 4234 | -10/Subcaves | A swath of the cavern ceiling suddenly collapsed 4336 | -10/Subcaves | Ambushed by Subdwellers from Twisted Machinery 4367 | -10/Subcaves | Met a Zionite searching for "candidates" 4486 | -10/Subcaves | Discovered new exit (range 5) 4591 | -10/Subcaves | Entered Materials 4591 | -8/Materials | Evolved 4 slots: Propulsion x1, Utility x3 4592 | -8/Materials | Identified exit to Factory 5391 | -8/Materials | Search patrols dispatched 5447 | -8/Materials | Discovered new exit (range 16) 5519 | -8/Materials | Destroyed 7 combat bots 5526 | -8/Materials | Build established: Mutant 5791 | -8/Materials | First assault squad dispatched 5817 | -8/Materials | Discovered exit to Factory (range 5) 6110 | -8/Materials | Repaired Lgt. Armor Plating 6155 | -8/Materials | Repaired Spk. Treads 6195 | -8/Materials | Repaired Deuterium Engine 6210 | -8/Materials | Discovered exit to Factory (range 11) 6438 | -8/Materials | Discovered new exit (range 10) 6769 | -8/Materials | Build established: Scavenger-Mutant 6913 | -8/Materials | Destroyed 7 combat bots 7308 | -8/Materials | Build established: Mutant 7391 | -8/Materials | Identified exit to Storage 7548 | -8/Materials | Self-destructed Last Messages --------------- Map updated. 07451_ System corrupted: Matter fused (-10). 07480_ Y-45 Defender heat damages Lgt. Treads. 07486_ 4,JCQBH,H/GFZS DXA L&QF5AVXQS9|6 WPLK 07488_ Melted Lgt. Armor Plating. 07488_ Melted Hvy. Assault Rifle. 07489_ Y-45 Defender heat spikes uncontrollably. 07490_ Y-45 Defender heat damages Imp. Ion Engine. 07491_ Y-45 Defender heat damages Heat Sink. 07491_ Beam Rifle melted. 07491_ Heat Sink melted. 07491_ Y-45 Defender destroyed. 07496_ Acquired 10 matter. 07535_ Destroyed Flight Unit. 07535_ S-10 Pest suffers critical hit (Burn). 07535_ Destroyed Lgt. Ion Engine. 07538_ S-10 Pest destroyed. 07548_ Connecting with Terminal... >>Alert(Check) Current Alert Level: 2-K Map ----- +----------------------------------------------------+ | ???## """ ##?## ## # | | ???## ##?##""" ! ## # | | ???##########?##""" ## # | | ???##########?##""" ## # | | ??????????????## ########+### | | ??????????????## ######## ### | | ????????????#### ######## ##? | | ????????????############## #### ### | | ????????????## #### ### | | ????????????## """ """ #### | | ????????????## """ """ " " #### [ | | ????????????## """ """ "R" #### [ | | ????????????## """ #### *% | | ????????###### % #### | | ????????############"########## | | ????????## [ ### ######### | | ????????## ### # # | | ????????## """ ### # # | | ????????## """ ### + # | | ????????## """ ### #####+### | | ???####### ### ##### ### | | ???##########+##### ##?## ### | | ???## # ##?## ###+## | | ???## " # ##?## # # | | ???## T # ##### # #r | | ???## "@/ ############ # # | | ???## # # ### # # | | ???## # # """ ###%# # | | ???######### # """ * ### # "" # | | ???##### / # """ ### # T" # | | ??????## + ][ ###%# "" +% | | ??????## # """ ][ ### # # | | ??????###### # """ ### ###### | | ??????###### # """ ###%% % | | ??????????## # ### | | ??????????## ######+##### | | ??????????## # [ ## | | ??????????##% # ## ###### | | ??????????## # ]]## ###### | | ############ # ] ##% %##???# | | ############ # ] ## ##???# | | ## # # ## ##???# | | ## # ###+####### ###### | | ## # #####? | | ## !!! + % "" ##? | | ## !!/ # G"##? | | ## !! # "" ##? | | ## ] # """"" """"" #####? | | ## # """"" """"" #####? | | ############ """"" """""% ##???? | +----------------------------------------------------+ Best States ------------- Heat Dissipation 58 Energy Generation 15 Energy Capacity 275 Matter Stores 300 Matter Capacity 300 Sight Range 21 Terrain Scan Density 10 Armor Coverage 800 Resistance: KI 20 Resistance: TH 20 Resistance: EX 20 Resistance: EM 20 Resistance: I 20 Resistance: S 20 Resistance: P 20 Evasion (%) 55 Targeting Accuracy 8 Recoil Reduction 1 Offensive Hacking 10 Item Schematics ----------------- Spread Laser | -8/Materials | Scanalyzed Robot Schematics ------------------ None Fabricated ------------ Nothing Alien Tech Used ----------------- None Achievements -------------- None Challenges ------------ None Game ------ Seed CouplerExoskeletonWheel Manual? 0 Play Time 01:12:56 Cumulative 175.7 hours Start 2024.02.29 @ 21:49:24 End 2024.03.01 @ 18:31:41 Sessions 3 Manual Loads 0 Difficulty Adventurer Special Mode None Game No. 134 Rogue 0 Adventurer 134 Explorer 0 Win Type - Total 2 Types 2/0/0/0/0/0/0/0/0 Lore% 57 Gallery% 63 Achievement% 54 Wizard Run 0 Options --------- Layout 0 ASCII 0 Keyboard 0 Movement Mouse Keybinds 0 Fullscreen 2 Font 20/SmallcapsGlow Map View 66x50 Zoom Use 0% Tactical HUD 1 Map Filters NONE Filters NONE Steam X RUN: f3a97068-1433-4302-87e1-3df212b7d522